fUSD/lending_fUSD_20240116
["ID","MTS","AMOUNT","RATE_DAILY","PERIOD"]
[311747721,1705374666221,-500.0,0.00022985,2]
[311747722,1705374666231,-536.37,0.00022985,2]
[311747723,1705374666240,-2293.17,0.00022985,2]
[311747724,1705374666250,-721.29,0.00022985,2]
[311747725,1705374666260,-686.01,0.00022985,2]
[311747726,1705374666270,-500.0,0.00022985,2]
[311747727,1705374666280,-674.28,0.00022985,2]
[311747728,1705374666289,-500.0,0.00022985,2]
[311747729,1705374666299,-544.07,0.00022985,2]
[311747730,1705374666310,-1391.74,0.00022985,2]
[311747731,1705374666319,-1009.38,0.00022985,2]
[311747732,1705374666329,-1082.82,0.00022985,2]
[311747733,1705374666339,-500.0,0.00022985,2]
[311747734,1705374666348,-500.0,0.00022985,2]
[311747735,1705374666358,-500.0,0.00022985,2]
[311747736,1705374666368,-2350.97,0.00022985,2]
[311747737,1705374666378,-748.6,0.00022985,2]
[311747738,1705374666388,-4989.59,0.00022985,2]
[311747739,1705374666398,-2118.36,0.00022985,2]
[311747740,1705374666408,-808.45,0.00022985,2]
[311747741,1705374666418,-589.48,0.00022985,2]
[311747742,1705374666428,-7427.26,0.00022985,2]
[311747743,1705374666438,-500.0,0.00022985,2]
[311747744,1705374666447,-526.54,0.00022985,2]
[311747745,1705374666457,-500.0,0.00022985,2]
[311747746,1705374666467,-1772.1,0.00022985,2]
[311747747,1705374666476,-966.49,0.00022985,2]
[311747748,1705374666486,-1336.25,0.00022985,2]
[311747749,1705374666495,-500.0,0.00022985,2]
[311747750,1705374666505,-500.0,0.00022985,2]
[311747751,1705374666514,-863.08,0.00022985,2]
[311747752,1705374666524,-898.08,0.00022985,2]
[311747753,1705374666533,-3150.49,0.00022985,2]
[311747754,1705374666543,-649.23,0.00022985,2]
[311747755,1705374666553,-2930.88,0.00022985,2]
[311747756,1705374666564,-962.03,0.00022985,2]
[311747757,1705374666574,-2265.14,0.00022985,2]
[311747758,1705374666583,-862.22,0.00022985,2]
[311747759,1705374666592,-2876.21,0.00022985,2]
[311747760,1705374666603,-687.1,0.00022985,2]
[311747761,1705374666613,-500.0,0.00022985,2]
[311747762,1705374666623,-1679.8,0.00022985,2]
[311747763,1705374666632,-1463.07,0.00022985,2]
[311747764,1705374666642,-500.0,0.00022985,5]
[311747765,1705374666651,-3421.58,0.00022985,2]
[311747766,1705374666661,-500.0,0.00022985,2]
[311747767,1705374666670,-2998.23,0.00022985,2]
[311747768,1705374666680,-500.0,0.00022985,2]
[311747769,1705374666691,-627.54,0.00022985,2]
[311747770,1705374666701,-996.83,0.00022985,2]
[311747771,1705374666710,-3331.47,0.00022985,2]
[311747772,1705374666720,-1491.53,0.00022985,2]
[311747773,1705374666730,-2504.86,0.00022985,2]
[311747774,1705374666740,-1800.48,0.00022985,2]
[311747775,1705374666749,-618.62,0.00022985,2]
[311747776,1705374666759,-1629.08,0.00022985,2]
[311747777,1705374666770,-1195.85,0.00022985,2]
[311747778,1705374666780,-4906.26,0.00022985,2]
[311747779,1705374666790,-698.83,0.00022985,2]
[311747780,1705374666799,-1322.88,0.00022985,2]
[311747781,1705374666810,-500.0,0.00022985,2]
[311747782,1705374666819,-3295.12,0.00022985,2]
[311747783,1705374666830,-991.99,0.00022985,2]
[311747784,1705374666839,-5089.05,0.00022985,2]
[311747785,1705374666849,-780.29,0.00022985,2]
[311747786,1705374666858,-723.56,0.00022985,2]
[311747787,1705374666868,-1555.96,0.00022985,2]
[311747788,1705374666878,-500.0,0.00022986,2]
[311747789,1705374666887,-500.0,0.00022986,2]
[311747790,1705374666897,-610.24,0.00022986,2]
[311747791,1705374666906,-500.0,0.00022986,2]
[311747792,1705374666916,-500.0,0.00022986,2]
[311747793,1705374666926,-500.0,0.00022986,2]
[311747794,1705374666936,-500.0,0.00022986,2]
[311747795,1705374666945,-500.0,0.00022986,2]
[311747796,1705374666954,-500.0,0.00022986,2]
[311747797,1705374666964,-500.0,0.00022986,2]
[311747798,1705374666974,-500.0,0.00022986,2]
[311747799,1705374666983,-515.19,0.00022986,2]
[311747800,1705374666992,-592.66,0.00022986,2]
[311747801,1705374667002,-500.0,0.00022986,2]
[311747802,1705374667011,-500.0,0.00022986,2]
[311747803,1705374667021,-500.0,0.00022986,2]
[311747804,1705374667031,-663.04,0.00022986,2]
[311747805,1705374667040,-500.0,0.00022986,2]
[311747806,1705374667049,-500.0,0.00022986,2]
[311747807,1705374667059,-500.0,0.00022986,2]
[311747808,1705374667068,-542.6,0.00022986,2]
[311747809,1705374667078,-573.13,0.00022986,2]
[311747810,1705374667088,-833.02,0.00022986,2]
[311747811,1705374667097,-500.01,0.00022986,2]
[311747812,1705374667106,-500.0,0.00022986,2]
[311747813,1705374667116,-500.0,0.00022986,2]
[311747814,1705374667126,-500.0,0.00022986,2]
[311747815,1705374667136,-500.0,0.00022986,2]
[311747816,1705374667145,-500.0,0.00022986,2]
[311747817,1705374667155,-500.0,0.00022986,2]
[311747818,1705374667164,-769.9,0.00022986,2]
[311747819,1705374667175,-500.0,0.00022986,2]
[311747820,1705374667185,-500.0,0.00022986,2]
[311747821,1705374667193,-500.0,0.00022986,2]
[311747822,1705374667206,-500.0,0.00022986,2]
[311747823,1705374667215,-500.0,0.00022986,2]
[311747824,1705374667225,-500.0,0.00022986,2]
[311747825,1705374667235,-737.67,0.00022986,2]
[311747826,1705374667244,-519.76,0.00022986,2]
[311747827,1705374667256,-500.0,0.00022986,2]
[311747828,1705374667265,-572.95,0.00022986,2]
[311747829,1705374667276,-453.30569027,0.00022986,2]
[311747830,1705374667285,-500.0,0.00022986,2]
[311747831,1705374667296,-542.76,0.00022986,2]
[311747832,1705374667306,-539.25,0.00022986,2]
[311747833,1705374667316,-791.97,0.00022986,2]
[311747834,1705374667325,-500.0,0.00022986,2]
[311747835,1705374667335,-630.83,0.00022986,2]
[311747836,1705374667344,-500.0,0.00022986,2]
[311747837,1705374667354,-685.13,0.00022986,2]
[311747838,1705374667363,-500.0,0.00022986,2]
[311747839,1705374667372,-1151.71,0.00022986,2]
[311747840,1705374667382,-500.0,0.00022986,2]
[311747841,1705374667391,-500.0,0.00022986,2]
[311747842,1705374667401,-1288.69,0.00022986,2]
[311747843,1705374667411,-500.0,0.00022986,2]
[311747844,1705374667420,-500.0,0.00022986,2]
[311747845,1705374667430,-520.2,0.00022986,2]
[311747846,1705374667439,-500.0,0.00022986,2]
[311747847,1705374667448,-500.0,0.00022986,2]
[311747848,1705374667458,-500.0,0.00022986,2]
[311747849,1705374667467,-500.0,0.00022986,2]
[311747850,1705374667477,-579.98,0.00022986,2]
[311747851,1705374667486,-630.38,0.00022986,2]
[311747852,1705374667496,-500.0,0.00022986,2]
[311747853,1705374667506,-690.5,0.00022986,2]
[311747854,1705374667516,-500.0,0.00022986,2]
[311747855,1705374667526,-500.0,0.00022986,2]
[311747856,1705374667536,-585.48,0.00022986,2]
[311747857,1705374667545,-500.0,0.00022986,2]
[311747858,1705374667556,-500.0,0.00022986,2]
[311747859,1705374667565,-500.0,0.00022986,2]
[311747860,1705374667575,-500.0,0.00022986,2]
[311747861,1705374667584,-534.43,0.00022986,2]
[311747862,1705374667594,-500.0,0.00022986,2]
[311747863,1705374667604,-656.28,0.00022986,2]
[311747864,1705374667613,-500.0,0.00022986,2]
[311747865,1705374667623,-500.0,0.00022986,2]
[311747866,1705374667633,-505.05,0.00022986,2]
[311747867,1705374667642,-514.83,0.00022986,2]
[311747868,1705374667652,-536.9159265,0.00022986,2]
[311747869,1705374667661,-500.0,0.00022986,2]
[311747870,1705374667671,-2546.32,0.00022986,2]
[311747871,1705374667680,-745.5,0.00022986,2]
[311747872,1705374667690,-592.11,0.00022986,2]
[311747873,1705374667700,-500.0,0.00022986,2]
[311747874,1705374667709,-500.0,0.00022986,2]
[311747875,1705374667720,-500.0,0.00022986,2]
[311747876,1705374667730,-500.0,0.00022986,2]
[311747877,1705374667740,-953.93,0.00022986,2]
[311747878,1705374667750,-500.0,0.00022986,2]
[311747879,1705374667760,-500.0,0.00022986,2]
[311747880,1705374667769,-500.0,0.00022986,2]
[311747881,1705374667779,-793.41,0.00022986,2]
[311747882,1705374667789,-500.0,0.00022986,2]
[311747883,1705374667798,-500.0,0.00022986,2]
[311747884,1705374667808,-805.12,0.00022986,2]
[311747885,1705374667817,-500.0,0.00022986,2]
[311747886,1705374667827,-382.46279551,0.00022986,2]
[311747887,1705374667837,-500.0,0.00022986,2]
[311747888,1705374667847,-967.05,0.00022986,2]
[311747889,1705374667856,-1071.09,0.00022986,2]
[311747890,1705374667866,-581.71,0.00022986,2]
[311747891,1705374667875,-500.0,0.00022986,2]
[311747892,1705374667885,-500.0,0.00022986,2]
[311747893,1705374667895,-1074.28,0.00022986,2]
[311747894,1705374667905,-500.0,0.00022986,2]
[311747895,1705374667914,-765.79,0.00022986,2]
[311747896,1705374667924,-631.65,0.00022986,2]
[311747897,1705374667934,-814.66,0.00022986,2]
[311747898,1705374667943,-1122.3,0.00022986,2]
[311747899,1705374667953,-250.0,0.00022986,2]
[311747900,1705374667962,-994.86,0.00022986,2]
[311747901,1705374667971,-500.0,0.00022986,2]
[311747902,1705374667981,-890.21,0.00022986,2]
[311747903,1705374667991,-520.01,0.00022986,2]
[311747904,1705374668000,-500.0,0.00022986,2]
[311747905,1705374668010,-1752.23,0.00022986,2]
[311747906,1705374668019,-576.72,0.00022986,2]
[311747907,1705374668028,-500.0,0.00022986,2]
[311747908,1705374668038,-2537.29,0.00022986,2]
[311747909,1705374668047,-769.52,0.00022986,2]
[311747910,1705374668057,-500.0,0.00022986,2]
[311747911,1705374668066,-571.81,0.00022986,2]
[311747912,1705374668076,-500.0,0.00022986,2]
[311747913,1705374668085,-949.04,0.00022986,2]
[311747914,1705374668094,-518.05,0.00022986,2]
[311747915,1705374668103,-500.0,0.00022986,2]
[311747916,1705374668113,-786.45,0.00022986,2]
[311747917,1705374668122,-500.0,0.00022986,2]
[311747918,1705374668131,-500.0,0.00022986,2]
[311747919,1705374668141,-524.46,0.00022986,2]
[311747920,1705374668150,-667.73,0.00022986,2]
[311747921,1705374668159,-500.0,0.00022986,2]
[311747922,1705374668169,-1520.88,0.00022986,2]
[311747923,1705374668178,-1843.49,0.00022986,2]
[311747924,1705374668187,-500.0,0.00022986,2]
[311747925,1705374668196,-2730.24,0.00022986,2]
[311747926,1705374668205,-500.0,0.00022986,2]
[311747927,1705374668214,-500.0,0.00022986,2]
[311747928,1705374668224,-684.81,0.00022986,2]
[311747929,1705374668233,-903.2,0.00022986,2]
[311747930,1705374668243,-606.84,0.00022986,2]
[311747931,1705374668252,-500.0,0.00022986,2]
[311747932,1705374668261,-698.48,0.00022986,2]
[311747933,1705374668270,-14933.84,0.00022986,2]
[311747934,1705374668279,-500.0,0.00022986,2]
[311747935,1705374668288,-500.0,0.00022986,2]
[311747936,1705374668297,-500.0,0.00022986,2]
[311747937,1705374668307,-636.39,0.00022986,2]
[311747938,1705374668316,-500.0,0.00022986,2]
[311747939,1705374668325,-623.75,0.00022986,2]
[311747940,1705374668334,-1464.47,0.00022986,2]
[311747941,1705374668343,-500.0,0.00022986,2]
[311747942,1705374668353,-500.0,0.00022986,2]
[311747943,1705374668362,-500.0,0.00022986,2]
[311747944,1705374668371,-688.18,0.00022986,2]
[311747945,1705374668380,-500.0,0.00022986,2]
[311747946,1705374668389,-839.87,0.00022986,2]
[311747947,1705374668398,-500.0,0.00022986,2]
[311747948,1705374668408,-500.0,0.00022986,2]
[311747949,1705374668417,-547.74,0.00022986,2]
[311747950,1705374668427,-490.58914663,0.00022986,2]
[311747951,1705374668437,-500.0,0.00022986,2]
[311747952,1705374668446,-686.01,0.00022986,2]
[311747953,1705374668455,-541.27,0.00022986,2]
[311747954,1705374668465,-1295.12,0.00022986,2]
[311747955,1705374668474,-500.0,0.00022986,2]
[311747956,1705374668484,-901.59,0.00022986,2]
[311747957,1705374668493,-500.0,0.00022986,2]
[311747958,1705374668502,-1078.49,0.00022986,2]
[311747959,1705374668511,-500.0,0.00022986,2]
[311747960,1705374668521,-619.43,0.00022986,2]
[311747961,1705374668530,-500.0,0.00022986,2]
[311747962,1705374668539,-500.0,0.00022986,2]
[311747963,1705374668549,-891.86,0.00022986,2]
[311747964,1705374668558,-2262.05,0.00022986,2]
[311747965,1705374668568,-879.91,0.00022986,2]
[311747966,1705374668578,-500.0,0.00022986,2]
[311747967,1705374668587,-1292.79,0.00022986,2]
[311747968,1705374668597,-550.48,0.00022986,2]
[311747969,1705374668606,-853.83,0.00022986,2]
[311747970,1705374668616,-502.31553912,0.00022986,2]
[311747971,1705374668625,-701.69,0.00022986,2]
[311747972,1705374668635,-300.0,0.00022986,2]
[311747973,1705374668644,-701.51,0.00022986,2]
[311747974,1705374668653,-500.0,0.00022986,2]
[311747975,1705374668663,-500.0,0.00022986,2]
[311747976,1705374668673,-712.92,0.00022986,2]
[311747977,1705374668683,-2162.43,0.00022986,2]
[311747978,1705374668692,-500.0,0.00022986,2]
[311747979,1705374668701,-500.92,0.00022986,2]
[311747980,1705374668711,-500.0,0.00022986,2]
[311747981,1705374668720,-500.0,0.00022986,2]
[311747982,1705374668730,-882.88,0.00022986,2]
[311747983,1705374668740,-811.85,0.00022986,2]
[311747984,1705374668750,-500.0,0.00022986,2]
[311747985,1705374668759,-500.0,0.00022986,2]
[311747986,1705374668768,-782.92,0.00022986,2]
[311747987,1705374668778,-937.61,0.00022986,2]
[311747988,1705374668788,-1121.68,0.00022987,2]
[311747989,1705374668797,-500.0,0.00022987,2]
[311747990,1705374668807,-678.0,0.00022987,2]
[311747991,1705374668816,-500.0,0.00022987,2]
[311747992,1705374668826,-546.35,0.00022987,2]
[311747993,1705374668835,-500.0,0.00022987,2]
[311747994,1705374668844,-500.0,0.00022987,2]
[311747995,1705374668854,-500.0,0.00022987,2]
[311747996,1705374668864,-606.69,0.00022987,2]
[311747997,1705374668873,-513.79,0.00022987,2]
[311747998,1705374668883,-1134.98,0.00022987,2]
[311747999,1705374668892,-693.98,0.00022987,2]
[311748000,1705374668901,-734.94,0.00022987,2]
[311748001,1705374668911,-915.17,0.00022987,2]
[311748002,1705374668920,-500.0,0.00022987,2]
[311748003,1705374668930,-597.51,0.00022987,2]
[311748004,1705374668939,-602.78,0.00022987,2]
[311748005,1705374668948,-745.04,0.00022987,2]
[311748006,1705374668958,-600.98,0.00022987,2]
[311748007,1705374668967,-500.0,0.00022987,2]
[311748008,1705374668977,-500.0,0.00022987,2]
[311748009,1705374668986,-680.2,0.00022987,2]
[311748010,1705374668995,-687.82,0.00022987,2]
[311748011,1705374669005,-731.62,0.00022987,2]
[311748012,1705374669014,-500.0,0.00022987,2]
[311748013,1705374669024,-500.0,0.00022987,2]
[311748014,1705374669033,-628.6,0.00022987,2]
[311748015,1705374669043,-500.0,0.00022987,2]
[311748016,1705374669052,-683.07,0.00022987,2]
[311748017,1705374669062,-500.0,0.00022987,2]
[311748018,1705374669071,-925.2,0.00022987,2]
[311748019,1705374669081,-278.23653318,0.00022987,2]
[311748020,1705374669090,-500.0,0.00022987,2]
[311748021,1705374669100,-1084.62,0.00022987,2]
[311748022,1705374669109,-617.24,0.00022987,2]
[311748023,1705374669119,-593.53,0.00022987,2]
[311748024,1705374669129,-568.27,0.00022987,2]
[311748025,1705374669138,-907.93,0.00022987,2]
[311748026,1705374669147,-500.0,0.00022987,2]
[311748027,1705374669156,-500.0,0.00022987,2]
[311748028,1705374669166,-500.0,0.00022987,2]
[311748029,1705374669175,-977.11,0.00022987,2]
[311748030,1705374669185,-646.51,0.00022987,2]
[311748031,1705374669194,-500.0,0.00022987,2]
[311748032,1705374669207,-500.0,0.00022987,2]
[311748033,1705374669217,-500.0,0.00022987,2]
[311748034,1705374669226,-1140.86,0.00022987,2]
[311748035,1705374669237,-1072.85,0.00022987,2]
[311748036,1705374669248,-637.63,0.00022987,2]
[311748037,1705374669257,-535.02,0.00022987,2]
[311748038,1705374669267,-705.18,0.00022987,2]
[311748039,1705374669277,-1044.31,0.00022987,2]
[311748040,1705374669287,-599.1,0.00022987,2]
[311748041,1705374669297,-500.0,0.00022987,2]
[311748042,1705374669306,-500.0,0.00022987,2]
[311748043,1705374669316,-731.35,0.00022987,2]
[311748044,1705374669326,-500.0,0.00022987,2]
[311748045,1705374669335,-500.0,0.00022987,2]
[311748046,1705374669344,-786.15,0.00022987,2]
[311748047,1705374669354,-817.54,0.00022987,2]
[311748048,1705374669363,-698.73,0.00022987,2]
[311748049,1705374669373,-500.0,0.00022987,2]
[311748050,1705374669382,-702.82,0.00022987,2]
[311748051,1705374669391,-500.0,0.00022987,2]
[311748052,1705374669401,-1031.39,0.00022987,2]
[311748053,1705374669413,-524.54,0.00022987,2]
[311748054,1705374669422,-743.02,0.00022987,2]
[311748055,1705374669431,-625.17,0.00022987,2]
[311748056,1705374669440,-943.13,0.00022987,2]
[311748057,1705374669449,-500.0,0.00022987,2]
[311748058,1705374669458,-500.0,0.00022987,2]
[311748059,1705374669468,-646.33,0.00022987,2]
[311748060,1705374669477,-500.0,0.00022987,2]
[311748061,1705374669486,-559.45,0.00022987,2]
[311748062,1705374669495,-640.09,0.00022987,2]
[311748063,1705374669504,-583.07,0.00022987,2]
[311748064,1705374669514,-500.0,0.00022987,2]
[311748065,1705374669523,-622.34,0.00022987,2]
[311748066,1705374669532,-500.0,0.00022987,2]
[311748067,1705374669541,-500.0,0.00022987,2]
[311748068,1705374669550,-500.0,0.00022987,2]
[311748069,1705374669560,-660.75,0.00022987,2]
[311748070,1705374669570,-791.03,0.00022987,2]
[311748071,1705374669579,-679.36,0.00022987,2]
[311748072,1705374669588,-665.21,0.00022987,2]
[311748073,1705374669597,-500.0,0.00022987,2]
[311748074,1705374669607,-1043.92,0.00022987,2]
[311748075,1705374669616,-500.0,0.00022987,2]
[311748076,1705374669625,-1032.92,0.00022987,2]
[311748077,1705374669634,-513.41,0.00022987,2]
[311748078,1705374669644,-500.0,0.00022987,2]
[311748079,1705374669653,-776.66,0.00022987,2]
[311748080,1705374669662,-500.0,0.00022987,2]
[311748081,1705374669672,-1120.34,0.00022987,2]
[311748082,1705374669681,-500.0,0.00022987,2]
[311748083,1705374669691,-500.0,0.00022987,2]
[311748084,1705374669700,-1529.34,0.00022987,2]
[311748085,1705374669709,-500.0,0.00022987,2]
[311748086,1705374669718,-660.31,0.00022987,2]
[311748087,1705374669727,-910.73,0.00022987,2]
[311748088,1705374669737,-500.0,0.00022987,2]
[311748089,1705374669746,-948.73,0.00022987,2]
[311748090,1705374669756,-527.61,0.00022987,2]
[311748091,1705374669765,-500.0,0.00022987,2]
[311748092,1705374669774,-1145.85,0.00022987,2]
[311748093,1705374669784,-500.0,0.00022987,2]
[311748094,1705374669793,-500.0,0.00022987,2]
[311748095,1705374669802,-500.0,0.00022987,2]
[311748096,1705374669812,-1028.57,0.00022987,2]
[311748097,1705374669821,-400.29682259,0.00022987,2]
[311748098,1705374669831,-500.0,0.00022987,2]
[311748099,1705374669840,-2736.81,0.00022987,2]
[311748100,1705374669851,-680.35,0.00022987,2]
[311748101,1705374669860,-738.04,0.00022987,2]
[311748102,1705374669870,-500.0,0.00022987,2]
[311748103,1705374669880,-583.06,0.00022987,2]
[311748104,1705374669889,-2846.26,0.00022987,2]
[311748105,1705374669899,-548.89,0.00022987,2]
[311748106,1705374669909,-764.53,0.00022987,2]
[311748107,1705374669918,-531.65,0.00022987,2]
[311748108,1705374669928,-500.0,0.00022987,2]
[311748109,1705374669937,-500.0,0.00022987,2]
[311748110,1705374669947,-500.0,0.00022987,2]
[311748111,1705374669956,-778.21,0.00022987,2]
[311748112,1705374669965,-579.26,0.00022987,2]
[311748113,1705374669975,-500.0,0.00022987,2]
[311748114,1705374669984,-500.0,0.00022987,2]
[311748115,1705374669994,-656.84,0.00022987,2]
[311748116,1705374670003,-500.0,0.00022987,2]
[311748117,1705374670013,-990.61,0.00022987,2]
[311748118,1705374670022,-500.0,0.00022987,2]
[311748119,1705374670032,-1268.31,0.00022987,2]
[311748120,1705374670041,-591.12,0.00022987,2]
[311748121,1705374670051,-500.0,0.00022987,2]
[311748122,1705374670060,-670.88,0.00022987,2]
[311748123,1705374670070,-723.6,0.00022987,2]
[311748124,1705374670080,-500.0,0.00022987,2]
[311748125,1705374670089,-500.0,0.00022987,2]
[311748126,1705374670099,-500.0,0.00022987,2]
[311748127,1705374670109,-726.98,0.00022987,2]
[311748128,1705374670118,-560.16,0.00022987,2]
[311748129,1705374670128,-586.17,0.00022987,2]
[311748130,1705374670138,-500.0,0.00022987,2]
[311748131,1705374670147,-500.0,0.00022987,2]
[311748132,1705374670157,-500.0,0.00022987,2]
[311748133,1705374670166,-1186.05,0.00022987,2]
[311748134,1705374670176,-500.0,0.00022987,2]
[311748135,1705374670186,-500.0,0.00022987,2]
[311748136,1705374670196,-613.84,0.00022987,2]
[311748137,1705374670205,-563.33,0.00022987,2]
[311748138,1705374670215,-913.01,0.00022987,2]
[311748139,1705374670225,-500.0,0.00022987,2]
[311748140,1705374670235,-761.42,0.00022987,2]
[311748141,1705374670245,-500.0,0.00022987,2]
[311748142,1705374670254,-1270.17,0.00022987,2]
[311748143,1705374670264,-500.0,0.00022987,2]
[311748144,1705374670273,-596.91,0.00022987,2]
[311748145,1705374670283,-500.0,0.00022987,2]
[311748146,1705374670293,-500.0,0.00022987,2]
[311748147,1705374670302,-500.0,0.00022987,2]
[311748148,1705374670313,-500.0,0.00022987,2]
[311748149,1705374670322,-598.57,0.00022987,2]
[311748150,1705374670332,-500.0,0.00022987,2]
[311748151,1705374670342,-500.0,0.00022987,2]
[311748152,1705374670351,-500.0,0.00022987,2]
[311748153,1705374670361,-151.0,0.00022987,2]
[311748154,1705374670371,-151.0,0.00022987,2]
[311748155,1705374670380,-151.0,0.00022987,7]
[311748156,1705374670390,-151.0,0.00022987,7]
[311748157,1705374670399,-863.98,0.00022993,2]
[311748158,1705374670409,-539.28,0.00022994,2]
[311748159,1705374670418,-500.0,0.00022994,2]
[311748160,1705374670428,-941.75,0.00022994,2]
[311748161,1705374670438,-500.0,0.00022994,2]
[311748162,1705374670447,-500.0,0.00022994,2]
[311748163,1705374670457,-661.13,0.00022994,2]
[311748164,1705374670466,-373.65651452,0.00022994,2]
[311748165,1705374670476,-644.37,0.00022994,2]
[311748166,1705374670486,-155.13781589,0.00022998,2]
[311748167,1705374670495,-158.86702518,0.00022999,2]
[311748168,1705374670505,-100000.0,0.00023,2]
[311748169,1705374670514,-3777880.71958162,0.00023,2]
[311748170,1705374671357,-7700.26548023,0.00023,2]
[311748171,1705374671369,-450.32550937,0.00023,2]
[311748172,1705374671388,-799.49389622,0.00023,2]
[311748173,1705374671509,-285.49172499,0.00023,2]
[311748174,1705374671536,-51543.22289053,0.00023,2]
[311748175,1705374671550,-130099.5129911,0.00023,2]
[311748176,1705374671561,-46659.67312494,0.00023,2]
[311748177,1705374672128,-171.35101916,0.0002216,2]
[311748178,1705374672138,-500.0,0.00022162,2]
[311748179,1705374672147,-117.61579486,0.00022436,2]
[311748180,1705374672182,-382.38420514,0.00022436,2]
[311748181,1705374672192,-500.0,0.0002271,2]
[311748182,1705374672201,-500.0,0.00022984,2]
[311748183,1705374672210,-316.13896879,0.00023,2]
[311748184,1705374672223,-1475.12240308,0.00023,2]
[311748185,1705374672244,-2886.47752405,0.00023,2]
[311748186,1705374672255,-877.16886363,0.00023,2]
[311748187,1705374672276,-713.16322836,0.00023,2]
[311748188,1705374672387,-481.83208699,0.00023,2]
[311748189,1705374672398,-29789.56620323,0.00023,2]
[311748190,1705374672423,-624.5037373,0.00023,2]
[311748191,1705374673053,-500.0,0.00022437,2]
[311748192,1705374673070,-508.28687562,0.00023,2]
[311748193,1705374673100,-871.23723563,0.00023,2]
[311748194,1705374673116,-40330.21655214,0.00023,2]
[311748195,1705374673152,-18374.74469596,0.00023,2]
[311748196,1705374673167,-392.29490377,0.00023,2]
[311748197,1705374673180,-12291.94301803,0.00023,2]
[311748198,1705374673201,-495.13548268,0.00023,2]
[311748199,1705374674258,-429.03986644,0.0002216,2]
[311748200,1705374674273,-70.96013356,0.0002216,2]
[311748201,1705374674285,-571.15,0.00022162,2]
[311748202,1705374674297,-1560.81,0.00022162,2]
[311748203,1705374674309,-28.08827628,0.00022164,2]
[311748204,1705374674324,-382.51727014,0.00022164,2]
[311748205,1705374674350,-100.06445358,0.00022164,2]
[311748206,1705374674362,-500.0,0.00022434,2]
[311748207,1705374674373,-199.93554642,0.00022436,2]
[311748208,1705374674389,-1360.87445358,0.00022436,2]
[311748209,1705374674400,-500.0,0.00022708,2]
[311748210,1705374674412,-500.0,0.00022982,2]
[311748211,1705374674423,-3658.38942696,0.00023,2]
[311748212,1705374674493,-10418.022841,0.00023,2]
[311748213,1705374679472,326.2,0.00019799,2]
[311748214,1705374679547,326.2,0.00022063,2]
[311748215,1705374683394,151.59,0.00021753,2]
[311748216,1705374686652,250.0,0.00022063,2]
[311748217,1705374710462,150.0,0.00022037,2]
[311748218,1705374753012,250.0,0.00021918,2]
[311748219,1705374775274,16084.5189,0.00022059,2]
[311748220,1705374797851,250.0,0.00022063,2]